fUSD/lending_fUSD_20240201
["ID","MTS","AMOUNT","RATE_DAILY","PERIOD"]
[313133259,1706795444570,-42416.52848,0.0003688,2]
[313133260,1706795444579,-15071.98811035,0.0003689,7]
[313133261,1706795444588,-18746.78039763,0.000369,7]
[313133262,1706795444598,-205.0,0.0003691,2]
[313133263,1706795444607,-210.0,0.0003691,2]
[313133264,1706795444617,-155.1395178,0.00036932,4]
[313133265,1706795444626,-199.2652702,0.00036932,4]
[313133266,1706795444636,-463.0140657,0.00036933,4]
[313133267,1706795444646,-19030.15880066,0.00036933,4]
[313133268,1706795444655,-10000.0,0.00036934,2]
[313133269,1706795444665,-2005.78,0.0003697,2]
[313133270,1706795444674,-337.71,0.00036974,2]
[313133271,1706795444684,-150.0,0.00036996,2]
[313133272,1706795444694,-193.28456754,0.00036996,2]
[313133273,1706795444703,-100000.0,0.00037,7]
[313133274,1706795444713,-351.94775369,0.00037,4]
[313133275,1706795444723,-8000.0,0.00037,7]
[313133276,1706795444732,-502.88747542,0.00037,2]
[313133277,1706795444742,-600.0,0.00037,38]
[313133278,1706795444751,-1120.37355536,0.00037,21]
[313133279,1706795444761,-1732.22653486,0.00037,38]
[313133280,1706795444770,-200.0,0.00037,120]
[313133281,1706795444779,-1000.0,0.00037,7]
[313133282,1706795444789,-1450.0,0.00037,7]
[313133283,1706795444800,-152.0,0.00037048,6]
[313133284,1706795444810,-386.88042025,0.00037099,4]
[313133285,1706795444819,-371.74910588,0.00037099,4]
[313133286,1706795444828,-400.55654245,0.00037101,4]
[313133287,1706795444837,-157.21833865,0.00037101,4]
[313133288,1706795444847,-158.84571897,0.00037101,4]
[313133289,1706795444856,-199.60879995,0.00037101,4]
[313133290,1706795444866,-196.74278904,0.00037101,4]
[313133291,1706795444877,-155.0,0.00037103,2]
[313133292,1706795444887,-179.0529049,0.00037132,10]
[313133293,1706795444896,-13659.53389252,0.0003716,10]
[313133294,1706795444905,-151.0201,0.00037198,8]
[313133295,1706795444915,-313.74,0.0003724,2]
[313133296,1706795444924,-1337.94,0.0003726,4]
[313133297,1706795444934,-50219.30283538,0.00037262,2]
[313133298,1706795444943,-151.12552605,0.000373,2]
[313133299,1706795444953,-178.38782152,0.00037348,10]
[313133300,1706795444962,-205.0,0.0003745,2]
[313133301,1706795444971,-210.0,0.0003745,2]
[313133302,1706795444980,-211.0,0.0003746,2]
[313133303,1706795444990,-151.0,0.00037464,30]
[313133304,1706795444999,-151.0201,0.00037498,10]
[313133305,1706795445008,-764.11347582,0.000375,4]
[313133306,1706795445017,-2000.0,0.000375,2]
[313133307,1706795445026,-359.43875112,0.000375,2]
[313133308,1706795445035,-500.0,0.000375,2]
[313133309,1706795445044,-300.0,0.000375,12]
[313133310,1706795445054,-861.1965428,0.000375,2]
[313133311,1706795445063,-150.0,0.0003751,7]
[313133312,1706795445073,-4926.41345739,0.00037521,2]
[313133313,1706795445082,-1019.5147473,0.000376,2]
[313133314,1706795445091,-623.3393929,0.00037699,2]
[313133315,1706795445100,-4190.61530041,0.00037699,2]
[313133316,1706795445109,-1233.0,0.000377,2]
[313133317,1706795445118,-155.3,0.00037739,2]
[313133318,1706795445127,-16000.0,0.00037791,3]
[313133319,1706795445135,-155.45988983,0.00037793,4]
[313133320,1706795445144,-155.63258898,0.00037793,4]
[313133321,1706795445153,-155.55978257,0.00037794,4]
[313133322,1706795445162,-157.19765992,0.00037794,4]
[313133323,1706795445171,-156.1203484,0.00037794,4]
[313133324,1706795445180,-151.0201,0.00037798,10]
[313133325,1706795445189,-16000.0,0.000378,3]
[313133326,1706795445198,-7978.77027039,0.000378,3]
[313133327,1706795445207,-2005.78,0.00037805,2]
[313133328,1706795445217,-1337.94,0.00037808,4]
[313133329,1706795445226,-152.0,0.00037828,7]
[313133330,1706795445235,-500.0,0.00037844,3]
[313133331,1706795445244,-500.0,0.00037853,3]
[313133332,1706795445253,-500.0,0.00037862,3]
[313133333,1706795445262,-500.0,0.00037871,3]
[313133334,1706795445271,-500.0,0.00037871,3]
[313133335,1706795445280,-500.0,0.00037879,3]
[313133336,1706795445289,-500.0,0.00037879,3]
[313133337,1706795445300,-500.0,0.00037888,3]
[313133338,1706795445309,-500.0,0.00037888,3]
[313133339,1706795445319,-500.0,0.00037897,3]
[313133340,1706795445328,-500.0,0.00037897,3]
[313133341,1706795445337,-4374.34206661,0.000379,7]
[313133342,1706795445346,-300.0,0.000379,2]
[313133343,1706795445354,-286.0,0.000379,2]
[313133344,1706795445363,-150.966983,0.000379,2]
[313133345,1706795445372,-695641.201276,0.000379,3]
[313133346,1706795445381,-313.74,0.000379,2]
[313133347,1706795445390,-173.7877256,0.00037974,2]
[313133348,1706795445399,-2362.1673679,0.00037974,2]
[313133349,1706795445408,-210.6546739,0.00037974,2]
[313133350,1706795445417,-338.2964511,0.00037974,2]
[313133351,1706795445427,-461.7213587,0.00037974,2]
[313133352,1706795445436,-150.16734523,0.00037999,120]
[313133353,1706795445445,-100000.0,0.00038,8]
[313133354,1706795445454,-600.0,0.00038,39]
[313133355,1706795445464,-109104.33584061,0.00038,2]
[313133356,1706795445479,-131044.54929653,0.00038,2]
[313133357,1706795445488,-156.64,0.00038,7]
[313133358,1706795445497,-157850.32017889,0.00038,2]
[313133359,1706795445506,-200.0,0.00038,120]
[313133360,1706795445516,-290.44945071,0.00038,3]
[313133361,1706795445525,-49785.66446539,0.00038,4]
[313133362,1706795445534,-1018.48757984,0.00038,2]
[313133363,1706795445543,-112616.03552625,0.00038,2]
[313133364,1706795445556,-30917.0615369,0.00038,2]
[313133366,1706795445565,-205.0,0.00038,2]
[313133368,1706795445574,-210.0,0.00038,2]
[313133370,1706795445584,-17106.0,0.00038,2]
[313133372,1706795445593,-443.0,0.00038,27]
[313133374,1706795445602,-37435.38635534,0.00038,2]
[313133376,1706795445612,-211.0,0.0003814,2]
[313133377,1706795445622,-1000.0,0.0003817,10]
[313133378,1706795445631,-1000.0,0.0003817,10]
[313133379,1706795445641,-1000.0,0.0003817,10]
[313133380,1706795445650,-151.0201,0.00038198,10]
[313133381,1706795445660,-173.101964,0.00038205,2]
[313133382,1706795445669,-215.0,0.00038219,2]
[313133383,1706795445679,-151.0,0.00038229,7]
[313133384,1706795445688,-10000.0,0.00038252,2]
[313133385,1706795445697,-50000.0,0.00038262,3]
[313133386,1706795445706,-509.02541318,0.00038356,5]
[313133387,1706795445716,-500.0,0.00038356,5]
[313133388,1706795445725,-1337.94,0.00038356,4]
[313133389,1706795445734,-691.97977343,0.00038356,2]
[313133390,1706795445744,-177.61773324,0.00038356,4]
[313133391,1706795445754,-273.98552606,0.00038356,4]
[313133392,1706795445763,-381.20346939,0.00038356,4]
[313133393,1706795445772,-500.0,0.00038356,4]
[313133394,1706795445782,-533.76270983,0.00038356,4]
[313133395,1706795445791,-500.0,0.00038356,4]
[313133396,1706795445801,-500.0,0.00038356,4]
[313133397,1706795445810,-619.81763256,0.00038356,4]
[313133398,1706795445820,-299.78991,0.00038356,4]
[313133399,1706795445828,-500.0,0.00038356,4]
[313133400,1706795445838,-500.0,0.00038356,4]
[313133401,1706795445848,-500.0,0.00038356,4]
[313133402,1706795445858,-500.0,0.00038356,4]
[313133404,1706795445870,-500.0,0.00038356,4]
[313133405,1706795445880,-1000.0,0.00038356,7]
[313133407,1706795445890,-500.0,0.00038356,4]
[313133409,1706795445900,-500.0,0.00038356,2]
[313133411,1706795445910,-500.0,0.00038356,4]
[313133413,1706795445919,-500.0,0.00038356,7]
[313133415,1706795445929,-500.0,0.00038356,4]
[313133417,1706795445938,-500.0,0.00038356,4]
[313133419,1706795445948,-500.0,0.00038356,4]
[313133421,1706795445957,-500.0,0.00038356,4]
[313133423,1706795445966,-561.22423872,0.00038356,4]
[313133425,1706795445976,-500.0,0.00038356,4]
[313133427,1706795445986,-500.0,0.00038356,4]
[313133429,1706795445997,-500.9,0.00038356,4]
[313133431,1706795446007,-500.0,0.00038356,4]
[313133434,1706795446016,-500.0,0.00038356,2]
[313133436,1706795446025,-500.0,0.00038356,4]
[313133437,1706795446034,-500.0,0.00038356,2]
[313133439,1706795446052,-500.0,0.00038356,4]
[313133441,1706795446062,-500.0,0.00038356,4]
[313133443,1706795446072,-500.0,0.00038356,4]
[313133445,1706795446081,-500.0,0.00038356,4]
[313133447,1706795446090,-500.0,0.00038356,2]
[313133449,1706795446099,-500.0,0.00038356,4]
[313133450,1706795446108,-500.0,0.00038356,4]
[313133451,1706795446117,-500.0,0.00038356,4]
[313133452,1706795446126,-500.0,0.00038356,4]
[313133453,1706795446135,-500.0,0.00038356,4]
[313133454,1706795446144,-500.0,0.00038356,4]
[313133455,1706795446153,-500.0,0.00038356,4]
[313133456,1706795446162,-500.0,0.00038356,4]
[313133457,1706795446171,-500.0,0.00038356,4]
[313133458,1706795446180,-500.0,0.00038356,4]
[313133459,1706795446189,-500.0,0.00038356,4]
[313133460,1706795446198,-500.0,0.00038356,4]
[313133461,1706795446207,-500.0,0.00038356,4]
[313133462,1706795446216,-500.0,0.00038356,4]
[313133463,1706795446225,-500.0,0.00038356,4]
[313133464,1706795446234,-500.0,0.00038356,4]
[313133465,1706795446243,-500.0,0.00038356,4]
[313133466,1706795446252,-500.0,0.00038356,4]
[313133467,1706795446261,-500.0,0.00038356,4]
[313133468,1706795446270,-500.0,0.00038356,4]
[313133469,1706795446279,-500.0,0.00038356,4]
[313133470,1706795446288,-500.0,0.00038356,4]
[313133471,1706795446298,-500.0,0.00038356,4]
[313133472,1706795446309,-405.38801918,0.00038356,4]
[313133473,1706795446318,-430.0,0.00038356,4]
[313133474,1706795446327,-500.0,0.00038356,4]
[313133475,1706795446336,-500.0,0.00038356,4]
[313133476,1706795446345,-500.0,0.00038356,4]
[313133477,1706795446355,-271.53552614,0.00038356,4]
[313133478,1706795446364,-500.0,0.00038356,4]
[313133479,1706795446373,-500.0,0.00038356,4]
[313133480,1706795446383,-547.82,0.00038356,4]
[313133481,1706795446392,-500.0,0.00038356,4]
[313133482,1706795446401,-500.0,0.00038356,4]
[313133483,1706795446411,-500.0,0.00038356,2]
[313133484,1706795446420,-500.0,0.00038356,4]
[313133485,1706795446430,-918.04,0.00038356,4]
[313133486,1706795446439,-393.59968601,0.00038356,4]
[313133487,1706795446449,-552.42137988,0.00038356,4]
[313133488,1706795446459,-500.0,0.00038356,4]
[313133489,1706795446470,-500.0,0.00038356,4]
[313133490,1706795446481,-500.0,0.00038356,4]
[313133491,1706795446490,-394.93552977,0.00038356,4]
[313133492,1706795446500,-500.0,0.00038356,4]
[313133493,1706795446510,-500.0,0.00038356,4]
[313133494,1706795446519,-500.0,0.00038356,4]
[313133495,1706795446529,-500.0,0.00038356,4]
[313133496,1706795446538,-500.0,0.00038356,4]
[313133497,1706795446547,-500.0,0.00038356,4]
[313133498,1706795446561,-500.0,0.00038356,4]
[313133499,1706795446570,-500.0,0.00038356,4]
[313133500,1706795446579,-500.0,0.00038356,4]
[313133501,1706795446589,-532.35,0.00038356,4]
[313133502,1706795446598,-1038.98,0.00038356,4]
[313133503,1706795446607,-283.25292485,0.00038356,4]
[313133504,1706795446617,-500.0,0.00038356,4]
[313133505,1706795446626,-630.44,0.00038356,4]
[313133506,1706795446636,-500.0,0.00038356,4]
[313133507,1706795446645,-855.46,0.00038356,4]
[313133508,1706795446655,-500.0,0.00038356,4]
[313133509,1706795446664,-500.0,0.00038356,4]
[313133510,1706795446673,-7491.3,0.00038356,4]
[313133511,1706795446683,-649.07,0.00038356,4]
[313133512,1706795446692,-500.0,0.00038356,4]
[313133513,1706795446701,-1993.07,0.00038356,4]
[313133514,1706795446710,-5037.04,0.00038356,4]
[313133515,1706795446720,-1000.0,0.00038356,7]
[313133516,1706795446729,-1000.0,0.00038356,7]
[313133517,1706795446739,-664.31,0.00038356,4]
[313133518,1706795446748,-500.0,0.00038356,4]
[313133519,1706795446757,-500.0,0.00038356,4]
[313133520,1706795446767,-500.0,0.00038356,4]
[313133521,1706795446776,-500.0,0.00038356,4]
[313133522,1706795446786,-500.0,0.00038356,4]
[313133523,1706795446795,-500.0,0.00038356,4]
[313133524,1706795446807,-1589.64,0.00038356,4]
[313133525,1706795446817,-500.0,0.00038356,4]
[313133526,1706795446826,-500.0,0.00038356,4]
[313133527,1706795446836,-1069.77,0.00038356,4]
[313133528,1706795446846,-500.0,0.00038356,4]
[313133529,1706795446855,-500.0,0.00038356,4]
[313133530,1706795446865,-731.97,0.00038356,4]
[313133531,1706795447041,-500.0,0.00038356,4]
[313133532,1706795447054,-500.0,0.00038356,4]
[313133533,1706795447063,-500.0,0.00038356,4]
[313133534,1706795447073,-500.0,0.00038356,4]
[313133535,1706795447082,-500.0,0.00038356,4]
[313133536,1706795447091,-500.0,0.00038356,4]
[313133537,1706795447101,-500.0,0.00038356,4]
[313133538,1706795447110,-500.0,0.00038356,4]
[313133539,1706795447120,-552.56,0.00038356,4]
[313133540,1706795447129,-500.0,0.00038356,4]
[313133541,1706795447138,-500.0,0.00038356,4]
[313133542,1706795447148,-500.0,0.00038356,4]
[313133543,1706795447158,-500.0,0.00038356,4]
[313133544,1706795447167,-500.0,0.00038356,4]
[313133545,1706795447176,-500.0,0.00038356,4]
[313133546,1706795447185,-586.13,0.00038356,4]
[313133547,1706795447194,-500.0,0.00038356,4]
[313133548,1706795447204,-526.23528554,0.00038356,4]
[313133549,1706795447214,-500.0,0.00038356,4]
[313133550,1706795447223,-500.0,0.00038356,4]
[313133551,1706795447233,-526.97865821,0.00038356,4]
[313133552,1706795447243,-500.0,0.00038356,4]
[313133553,1706795447252,-500.0,0.00038356,4]
[313133554,1706795447261,-500.0,0.00038356,4]
[313133555,1706795447271,-500.0,0.00038356,4]
[313133556,1706795447280,-500.0,0.00038356,4]
[313133557,1706795447289,-500.0,0.00038356,2]
[313133558,1706795447301,-775.07,0.00038356,4]
[313133559,1706795447310,-500.0,0.00038356,4]
[313133560,1706795447319,-500.0,0.00038356,4]
[313133561,1706795447329,-500.0,0.00038356,4]
[313133562,1706795447339,-379.00547233,0.00038356,4]
[313133563,1706795447348,-527.29054972,0.00038356,4]
[313133564,1706795447357,-500.0,0.00038356,4]
[313133565,1706795447366,-500.0,0.00038356,4]
[313133566,1706795447375,-500.0,0.00038356,4]
[313133567,1706795447385,-417.47150633,0.00038356,4]
[313133568,1706795447394,-530.83869087,0.00038356,4]
[313133569,1706795447403,-500.0,0.00038356,4]
[313133570,1706795447413,-500.0,0.00038356,4]
[313133571,1706795447422,-500.0,0.00038356,4]
[313133572,1706795447431,-500.0,0.00038356,4]
[313133573,1706795447441,-500.0,0.00038356,4]
[313133574,1706795447450,-500.0,0.00038356,4]
[313133575,1706795447461,-500.0,0.00038356,4]
[313133576,1706795447471,-535.88239781,0.00038356,4]
[313133577,1706795447482,-519.60635601,0.00038356,4]
[313133578,1706795447491,-842.52,0.00038356,4]
[313133579,1706795447501,-500.0,0.00038356,4]
[313133580,1706795447511,-500.0,0.00038356,4]
[313133581,1706795447521,-500.0,0.00038356,4]
[313133582,1706795447530,-511.0671816,0.00038356,4]
[313133583,1706795447539,-500.0,0.00038356,4]
[313133584,1706795447550,-554.79077769,0.00038356,4]
[313133585,1706795447559,-500.0,0.00038356,4]
[313133586,1706795447568,-500.0,0.00038356,4]
[313133587,1706795447577,-500.0,0.00038356,5]
[313133588,1706795447586,-500.0,0.00038356,4]
[313133589,1706795447596,-500.0,0.00038356,4]
[313133590,1706795447604,-500.0,0.00038356,4]
[313133591,1706795447614,-623.0,0.00038356,5]
[313133592,1706795447624,-1135.03,0.00038356,4]
[313133593,1706795447633,-500.0,0.00038356,4]
[313133594,1706795447643,-500.0,0.00038356,4]
[313133595,1706795447652,-500.0,0.00038356,4]
[313133596,1706795447662,-500.0,0.00038356,4]
[313133597,1706795447671,-500.0,0.00038356,4]
[313133598,1706795447680,-500.0,0.00038356,4]
[313133599,1706795447690,-539.73,0.00038356,4]
[313133600,1706795447699,-949.46479712,0.00038356,7]
[313133601,1706795447708,-500.0,0.00038356,4]
[313133602,1706795447718,-500.0,0.00038356,4]
[313133603,1706795447727,-591.52763599,0.00038356,7]
[313133604,1706795447736,-367.6021836,0.00038356,2]
[313133605,1706795447745,-158.56059797,0.00038356,4]
[313133606,1706795447755,-500.0,0.00038356,4]
[313133607,1706795447765,-524.81390722,0.00038356,4]
[313133608,1706795447774,-500.0,0.00038356,4]
[313133609,1706795447783,-584.05038255,0.00038356,7]
[313133610,1706795447793,-511.44761972,0.00038356,10]
[313133611,1706795447803,-500.0,0.00038356,4]
[313133612,1706795447812,-500.0,0.00038356,4]
[313133613,1706795447822,-500.0,0.00038356,4]
[313133614,1706795447831,-500.0,0.00038356,4]
[313133615,1706795447841,-500.0,0.00038356,4]
[313133616,1706795447850,-500.0,0.00038356,4]
[313133617,1706795447859,-500.0,0.00038356,4]
[313133618,1706795447870,-500.0,0.00038356,4]
[313133619,1706795447880,-500.0,0.00038356,4]
[313133620,1706795447889,-500.0,0.00038356,4]
[313133621,1706795447898,-500.0,0.00038356,13]
[313133622,1706795447908,-500.0,0.00038356,13]
[313133623,1706795447917,-500.0,0.00038356,13]
[313133624,1706795447926,-500.0,0.00038356,13]
[313133625,1706795447935,-500.0,0.00038356,13]
[313133626,1706795447945,-500.0,0.00038356,13]
[313133627,1706795447954,-500.0,0.00038356,13]
[313133628,1706795447965,-500.0,0.00038356,13]
[313133629,1706795447974,-500.0,0.00038356,13]
[313133630,1706795447983,-500.0,0.00038356,13]
[313133631,1706795447993,-500.0,0.00038356,13]
[313133632,1706795448003,-500.0,0.00038356,13]
[313133633,1706795448013,-500.0,0.00038356,13]
[313133634,1706795448023,-500.0,0.00038356,13]
[313133635,1706795448033,-500.0,0.00038356,13]
[313133636,1706795448042,-500.0,0.00038356,13]
[313133637,1706795448054,-500.0,0.00038356,13]
[313133638,1706795448063,-500.0,0.00038356,13]
[313133639,1706795448073,-500.0,0.00038356,13]
[313133640,1706795448083,-500.0,0.00038356,13]
[313133641,1706795448092,-500.0,0.00038356,13]
[313133642,1706795448103,-500.0,0.00038356,13]
[313133643,1706795448112,-500.0,0.00038356,13]
[313133644,1706795448121,-500.0,0.00038356,13]
[313133645,1706795448132,-500.0,0.00038356,13]
[313133646,1706795448141,-500.0,0.00038356,13]
[313133647,1706795448151,-500.0,0.00038356,13]
[313133648,1706795448160,-500.0,0.00038356,13]
[313133649,1706795448170,-500.0,0.00038356,13]
[313133650,1706795448179,-500.0,0.00038356,13]
[313133651,1706795448188,-500.0,0.00038356,13]
[313133652,1706795448197,-500.0,0.00038356,13]
[313133653,1706795448206,-500.0,0.00038356,13]
[313133654,1706795448215,-500.0,0.00038356,13]
[313133655,1706795448227,-500.0,0.00038356,13]
[313133656,1706795448237,-500.0,0.00038356,13]
[313133657,1706795448246,-500.0,0.00038356,13]
[313133658,1706795448255,-500.0,0.00038356,13]
[313133659,1706795448265,-500.0,0.00038356,13]
[313133660,1706795448274,-500.0,0.00038356,13]
[313133661,1706795448283,-500.0,0.00038356,13]
[313133662,1706795448292,-500.0,0.00038356,13]
[313133663,1706795448303,-500.0,0.00038356,13]
[313133664,1706795448313,-500.0,0.00038356,13]
[313133665,1706795448322,-500.0,0.00038356,13]
[313133666,1706795448331,-500.0,0.00038356,13]
[313133667,1706795448342,-500.0,0.00038356,13]
[313133668,1706795448351,-500.0,0.00038356,13]
[313133669,1706795448360,-500.0,0.00038356,13]
[313133670,1706795448371,-500.0,0.00038356,13]
[313133671,1706795448380,-512.0,0.00038356,13]
[313133672,1706795448391,-500.0,0.00038356,13]
[313133673,1706795448401,-500.0,0.00038356,13]
[313133674,1706795448411,-500.0,0.00038356,13]
[313133675,1706795448420,-500.0,0.00038356,13]
[313133676,1706795448430,-500.0,0.00038356,13]
[313133677,1706795448441,-500.0,0.00038356,13]
[313133678,1706795448451,-500.0,0.00038356,13]
[313133679,1706795448465,-561.0,0.00038356,13]
[313133680,1706795448475,-6521.721096,0.00038359,2]
[313133681,1706795448485,-2645.945971,0.00038359,2]
[313133682,1706795448494,-194.880167,0.00038359,2]
[313133683,1706795448503,-7826.065315,0.00038359,2]
[313133684,1706795448514,-1304.344219,0.00038359,2]
[313133685,1706795448524,-1304.344219,0.00038359,2]
[313133686,1706795448533,-1956.516329,0.00038359,2]
[313133687,1706795448542,-1304.344219,0.00038359,2]
[313133688,1706795448555,-2739.12286,0.00038359,2]
[313133689,1706795448566,-2739.122861,0.00038359,2]
[313133690,1706795448576,-5556.48654,0.00038359,2]
[313133691,1706795448587,-409.248352,0.00038359,2]
[313133692,1706795448597,-50000.0,0.00038399,30]
[313133693,1706795448608,-1396.96,0.000384,7]
[313133694,1706795448617,-3000.0,0.000384,2]
[313133695,1706795448627,-5016.23380532,0.00038437,2]
[313133696,1706795448637,-153.88,0.00038485,2]
[313133697,1706795448647,-151.0201,0.00038498,10]
[313133698,1706795448656,-300.0,0.000385,13]
[313133699,1706795448666,-443.0,0.000385,28]
[313133700,1706795448675,-151.12552605,0.0003855,2]
[313133701,1706795448685,-152.0,0.00038609,8]
[313133702,1706795448694,-313.74,0.0003861,2]
[313133703,1706795448703,-337.71,0.00038618,2]
[313133704,1706795448713,-2005.78,0.0003864,2]
[313133705,1706795448722,-1000.0,0.000387,15]
[313133706,1706795448731,-945.0,0.00038701,7]
[313133707,1706795448741,-584.0,0.00038701,7]
[313133708,1706795448750,-583.0,0.00038701,7]
[313133709,1706795448760,-1233.0,0.0003873,2]
[313133710,1706795448769,-173.101964,0.0003876,2]
[313133711,1706795448778,-3834.772004,0.0003876,2]
[313133712,1706795448788,-1095.649144,0.0003876,2]
[313133713,1706795448798,-222.639893,0.0003876,2]
[313133714,1706795448808,-547.824572,0.0003876,2]
[313133715,1706795448818,-547.824572,0.0003876,2]
[313133716,1706795448827,-3333.891924,0.0003876,2]
[313133717,1706795448836,-245.549011,0.0003876,2]
[313133718,1706795448846,-158.184198,0.0003876,2]
[313133719,1706795448855,-172.459649,0.0003876,2]
[313133720,1706795448866,-202.050372,0.0003876,2]
[313133721,1706795448875,-150.0,0.0003876,2]
[313133722,1706795448884,-1182.51753136,0.00038765,2]
[313133723,1706795448893,-151.0201,0.00038798,10]
[313133724,1706795448903,-1010.89162983,0.000388,4]
[313133725,1706795448912,-211.0,0.0003881,2]
[313133726,1706795448922,-208.0,0.00038818,13]
[313133727,1706795448931,-173.101964,0.00038821,2]
[313133728,1706795448940,-178.652212,0.00038821,2]
[313133729,1706795448949,-6521.721096,0.00038821,2]
[313133730,1706795448958,-2645.945971,0.00038821,2]
[313133731,1706795448967,-194.880167,0.00038821,2]
[313133732,1706795448977,-7826.065315,0.00038821,2]
[313133733,1706795448986,-1304.344219,0.00038821,2]
[313133734,1706795448995,-1304.344219,0.00038821,2]
[313133735,1706795449005,-1956.516329,0.00038821,2]
[313133736,1706795449014,-1304.344219,0.00038821,2]
[313133737,1706795449023,-2739.12286,0.00038821,2]
[313133738,1706795449032,-173.101965,0.00038821,2]
[313133739,1706795449041,-178.652212,0.00038821,2]
[313133740,1706795449051,-2739.122861,0.00038821,2]
[313133741,1706795449061,-5556.48654,0.00038821,2]
[313133742,1706795449071,-409.248352,0.00038821,2]
[313133743,1706795449080,-172.459649,0.00038821,2]
[313133744,1706795449090,-200.0,0.00038862,2]
[313133745,1706795449100,-16664.08288252,0.0003888,2]
[313133746,1706795449109,-16664.08288245,0.0003888,2]
[313133747,1706795449119,-16664.08288245,0.0003888,2]
[313133748,1706795449128,-16664.08288245,0.0003888,2]
[313133749,1706795449138,-16664.08288245,0.0003888,2]
[313133750,1706795449147,-1000.0,0.000389,2]
[313133751,1706795449156,-1337.94,0.00038904,4]
[313133752,1706795449166,-500.0,0.00038904,4]
[313133753,1706795449175,-1000.0,0.00038904,7]
[313133754,1706795449184,-500.0,0.00038904,2]
[313133755,1706795449193,-500.0,0.00038904,7]
[313133756,1706795449202,-500.0,0.00038904,4]
[313133757,1706795449212,-3764.42292916,0.00038904,2]
[313133758,1706795449221,-500.9,0.00038904,4]
[313133759,1706795449231,-500.0,0.00038904,4]
[313133760,1706795449240,-448.90684563,0.00038904,4]
[313133761,1706795449249,-500.0,0.00038904,2]
[313133762,1706795449259,-212.538534,0.00038904,4]
[313133763,1706795449268,-500.0,0.00038904,4]
[313133764,1706795449277,-500.0,0.00038904,4]
[313133765,1706795449287,-500.0,0.00038904,4]
[313133766,1706795449296,-500.0,0.00038904,4]
[313133767,1706795449306,-500.0,0.00038904,4]
[313133768,1706795449316,-500.0,0.00038904,4]
[313133769,1706795449325,-500.0,0.00038904,2]
[313133770,1706795449334,-500.0,0.00038904,4]
[313133771,1706795449343,-918.04,0.00038904,4]
[313133772,1706795449353,-500.0,0.00038904,4]
[313133773,1706795449411,-500.0,0.00038904,4]
[313133774,1706795449420,-500.0,0.00038904,4]
[313133775,1706795449429,-500.0,0.00038904,4]
[313133776,1706795449439,-500.0,0.00038904,4]
[313133777,1706795449448,-500.0,0.00038904,4]
[313133778,1706795449458,-500.0,0.00038904,4]
[313133779,1706795449467,-532.35,0.00038904,4]
[313133780,1706795449480,-1038.98,0.00038904,4]
[313133781,1706795449489,-500.0,0.00038904,4]
[313133782,1706795449498,-630.44,0.00038904,4]
[313133783,1706795449508,-500.0,0.00038904,4]
[313133784,1706795449517,-855.46,0.00038904,4]
[313133785,1706795449526,-500.0,0.00038904,4]
[313133786,1706795449536,-500.0,0.00038904,4]
[313133787,1706795449545,-7491.3,0.00038904,4]